[Event "Tournoi de MI Clichy 92 2022"]
[Site "Clichy, France"]
[Date "2022.02.26"]
[Round "8.3"]
[White "Sorbe, Stephane"]
[Black "Petrov, Martin"]
[Result "0-1"]
[TimeControl "1H40 40 moves plus 30 minutes + 30 seconds from move one"]
[WhiteElo "2326"]
[BlackElo "2547"]

1. e4 {[%clk 01:30:56]} {[%emt 00:00:02]} c5 {[%clk 01:30:22]} {[%emt
00:00:39]} 2. Nc3 {[%clk 01:31:14]} {[%emt 00:00:12]} Nc6 {[%clk 01:30:33]}
{[%emt 00:00:19]} 3. g3 {[%clk 01:31:35]} {[%emt 00:00:10]} g6 {[%clk
01:30:36]} {[%emt 00:00:27]} 4. Bg2 {[%clk 01:32:00]} {[%emt 00:00:04]} Bg7
{[%clk 01:31:01]} {[%emt 00:00:05]} 5. d3 {[%clk 01:32:27]} {[%emt 00:00:03]}
d6 {[%clk 01:31:06]} {[%emt 00:00:25]} 6. Be3 {[%clk 01:32:52]} {[%emt
00:00:05]} Rb8 {[%clk 01:31:00]} {[%emt 00:00:36]} 7. f4 {[%clk 01:31:56]}
{[%emt 00:01:26]} b5 {[%clk 01:30:46]} {[%emt 00:00:44]} 8. Qd2 {[%clk
01:25:38]} {[%emt 00:06:48]} b4 {[%clk 01:30:12]} {[%emt 00:01:03]} 9. Nd1
{[%clk 01:26:04]} {[%emt 00:00:04]} a5 {[%clk 01:30:18]} {[%emt 00:00:24]} 10.
Ne2 {[%clk 01:22:23]} {[%emt 00:04:10]} Nd4 {[%clk 01:28:23]} {[%emt 00:02:25]}
11. c3 {[%clk 01:15:02]} {[%emt 00:07:52]} Nxe2 {[%clk 01:26:41]} {[%emt
00:02:11]} 12. Qxe2 {[%clk 01:15:16]} {[%emt 00:00:17]} Nf6 {[%clk 01:02:23]}
{[%emt 00:24:47]} 13. O-O {[%clk 01:07:25]} {[%emt 00:08:21]} Ng4 {[%clk
00:55:16]} {[%emt 00:07:37]} 14. c4 {[%clk 00:58:12]} {[%emt 00:09:43]} O-O
{[%clk 00:52:09]} {[%emt 00:03:37]} 15. h3 {[%clk 00:53:51]} {[%emt 00:04:52]}
Nxe3 {[%clk 00:51:10]} {[%emt 00:01:29]} 16. Nxe3 {[%clk 00:54:16]} {[%emt
00:00:04]} f5 {[%clk 00:50:13]} {[%emt 00:01:28]} 17. Rae1 {[%clk 00:49:35]}
{[%emt 00:05:10]} b3 {[%clk 00:49:34]} {[%emt 00:01:09]} 18. a3 {[%clk
00:49:22]} {[%emt 00:00:42]} fxe4 {[%clk 00:43:24]} {[%emt 00:06:41]} 19. dxe4
{[%clk 00:49:20]} {[%emt 00:00:31]} Bd4 {[%clk 00:42:06]} {[%emt 00:01:48]} 20.
Kh2 {[%clk 00:46:48]} {[%emt 00:03:02]} e6 {[%clk 00:41:55]} {[%emt 00:00:42]}
21. Rd1 {[%clk 00:22:18]} {[%emt 00:25:00]} Qe7 {[%clk 00:39:39]} {[%emt
00:02:46]} 22. Rd2 {[%clk 00:21:14]} {[%emt 00:01:34]} Ba6 {[%clk 00:36:34]}
{[%emt 00:03:36]} 23. Rfd1 {[%clk 00:20:29]} {[%emt 00:01:14]} Qg7 {[%clk
00:35:52]} {[%emt 00:01:12]} 24. h4 {[%clk 00:12:35]} {[%emt 00:08:25]} Rbe8
{[%clk 00:34:08]} {[%emt 00:02:14]} 25. Ng4 {[%clk 00:07:51]} {[%emt 00:05:14]}
h5 {[%clk 00:26:58]} {[%emt 00:07:40]} 26. Nf2 {[%clk 00:08:17]} {[%emt
00:00:04]} e5 {[%clk 00:26:23]} {[%emt 00:01:05]} 27. f5 {[%clk 00:08:25]}
{[%emt 00:00:23]} d5 {[%clk 00:21:49]} {[%emt 00:05:05]} 28. exd5 {[%clk
00:07:44]} {[%emt 00:01:10]} gxf5 {[%clk 00:22:13]} {[%emt 00:00:06]} 29. Qxh5
{[%clk 00:06:24]} {[%emt 00:01:50]} e4 {[%clk 00:19:05]} {[%emt 00:03:38]} 30.
Nh3 {[%clk 00:04:52]} {[%emt 00:02:00]} Qg4 {[%clk 00:12:11]} {[%emt 00:07:25]}
31. Qxg4+ {[%clk 00:03:15]} {[%emt 00:02:07]} fxg4 {[%clk 00:12:37]} {[%emt
00:00:04]} 32. Nf4 {[%clk 00:01:51]} {[%emt 00:01:54]} e3 {[%clk 00:13:00]}
{[%emt 00:00:07]} 33. Re2 {[%clk 00:01:18]} {[%emt 00:01:04]} Bxc4 {[%clk
00:12:36]} {[%emt 00:00:53]} 34. Nd3 {[%clk 00:01:45]} {[%emt 00:00:02]} Bb5
{[%clk 00:10:32]} {[%emt 00:02:34]} 35. d6 {[%clk 00:01:55]} {[%emt 00:00:21]}
Rd8 {[%clk 00:10:37]} {[%emt 00:00:25]} 36. Bd5+ {[%clk 00:02:06]} {[%emt
00:00:19]} Kh8 {[%clk 00:10:32]} {[%emt 00:00:35]} 37. a4 {[%clk 00:01:30]}
{[%emt 00:01:06]} Ba6 {[%clk 00:10:44]} {[%emt 00:00:18]} 38. Ree1 {[%clk
00:01:03]} {[%emt 00:00:58]} Rxd6 {[%clk 00:10:53]} {[%emt 00:00:21]} 39. Nf4
{[%clk 00:00:36]} {[%emt 00:00:56]} Rxf4 {[%clk 00:09:04]} {[%emt 00:02:18]} 40.
gxf4 {[%clk 00:01:04]} {[%emt 00:00:03]} Rxd5 {[%clk 00:07:48]} {[%emt
00:01:46]} 41. Rxe3 {[%clk 00:01:10]} {[%emt 00:00:23]} Bxe3 {[%clk 00:08:10]}
{[%emt 00:00:08]} 42. Rxd5 {[%clk 00:01:37]} {[%emt 00:00:03]} Bxf4+ {[%clk
00:08:35]} {[%emt 00:00:05]} 43. Kg1 {[%clk 00:02:01]} {[%emt 00:00:06]} Bc4
{[%clk 00:04:55]} {[%emt 00:04:10]} 44. Rf5 {[%clk 00:01:38]} {[%emt 00:00:53]}
Be3+ {[%clk 00:05:01]} {[%emt 00:00:25]} 45. Kg2 {[%clk 00:02:02]} {[%emt
00:00:06]} Bd4 {[%clk 00:05:19]} {[%emt 00:00:12]} 46. Rg5 {[%clk 00:01:45]}
{[%emt 00:00:47]} Bd3 {[%clk 00:04:27]} {[%emt 00:01:22]} 0-1

[Event "Tournoi de MI Clichy 92 2022"]
[Site "Clichy, France"]
[Date "2022.02.26"]
[Round "8.1"]
[White "Benmesbah, Natacha"]
[Black "Valles Moreno, Ivan"]
[Result "1-0"]
[TimeControl "1H40 40 moves plus 30 minutes + 30 seconds from move one"]
[WhiteElo "2221"]
[BlackElo "2393"]

1. e4 {[%clk 01:27:06]} {[%emt 00:03:54]} d6 {[%clk 01:29:51]} {[%emt
00:01:08]} 2. d4 {[%clk 01:27:30]} {[%emt 00:00:07]} Nf6 {[%clk 01:30:13]}
{[%emt 00:00:07]} 3. Nc3 {[%clk 01:27:57]} {[%emt 00:00:04]} e5 {[%clk
01:30:25]} {[%emt 00:00:18]} 4. Nf3 {[%clk 01:27:47]} {[%emt 00:00:41]} Nbd7
{[%clk 01:30:47]} {[%emt 00:00:07]} 5. Rg1 {[%clk 01:27:17]} {[%emt 00:01:01]}
c6 {[%clk 01:24:40]} {[%emt 00:06:36]} 6. g4 {[%clk 01:25:37]} {[%emt
00:02:11]} g6 {[%clk 01:18:05]} {[%emt 00:07:04]} 7. g5 {[%clk 01:24:38]}
{[%emt 00:01:30]} Nh5 {[%clk 01:11:56]} {[%emt 00:06:37]} 8. Be3 {[%clk
01:24:23]} {[%emt 00:00:46]} Bg7 {[%clk 01:12:16]} {[%emt 00:00:10]} 9. Qd2
{[%clk 01:24:24]} {[%emt 00:00:30]} O-O {[%clk 01:12:34]} {[%emt 00:00:10]} 10.
O-O-O {[%clk 01:24:24]} {[%emt 00:00:32]} Qa5 {[%clk 01:12:56]} {[%emt
00:00:07]} 11. Kb1 {[%clk 01:24:22]} {[%emt 00:00:33]} Re8 {[%clk 01:13:18]}
{[%emt 00:00:07]} 12. d5 {[%clk 01:19:35]} {[%emt 00:05:18]} c5 {[%clk
01:09:28]} {[%emt 00:04:19]} 13. Nb5 {[%clk 01:15:15]} {[%emt 00:04:52]} Qb6
{[%clk 01:09:51]} {[%emt 00:00:06]} 14. a4 {[%clk 01:15:32]} {[%emt 00:00:13]}
Bf8 {[%clk 00:57:19]} {[%emt 00:13:00]} 15. h4 {[%clk 01:14:01]} {[%emt
00:02:01]} Qd8 {[%clk 00:52:43]} {[%emt 00:05:05]} 16. Nh2 {[%clk 01:11:23]}
{[%emt 00:03:10]} a6 {[%clk 00:50:42]} {[%emt 00:02:30]} 17. Na3 {[%clk
01:11:36]} {[%emt 00:00:18]} b5 {[%clk 00:49:15]} {[%emt 00:01:56]} 18. axb5
{[%clk 01:10:47]} {[%emt 00:01:20]} Nb6 {[%clk 00:49:37]} {[%emt 00:00:06]} 19.
Be2 {[%clk 01:03:44]} {[%emt 00:07:35]} axb5 {[%clk 00:47:16]} {[%emt
00:02:50]} 20. Bxb5 {[%clk 00:59:02]} {[%emt 00:05:14]} Bd7 {[%clk 00:44:04]}
{[%emt 00:03:40]} 21. Be2 {[%clk 00:58:04]} {[%emt 00:01:28]} Ra4 {[%clk
00:41:16]} {[%emt 00:03:17]} 22. Bxh5 {[%clk 00:52:30]} {[%emt 00:06:05]} gxh5
{[%clk 00:36:48]} {[%emt 00:04:58]} 23. f3 {[%clk 00:51:24]} {[%emt 00:01:37]}
Qa8 {[%clk 00:36:20]} {[%emt 00:00:55]} 24. Qc3 {[%clk 00:38:52]} {[%emt
00:13:04]} Rb8 {[%clk 00:34:41]} {[%emt 00:02:08]} 25. Bc1 {[%clk 00:38:08]}
{[%emt 00:01:15]} Nxd5 {[%clk 00:33:38]} {[%emt 00:01:33]} 26. Rxd5 {[%clk
00:36:10]} {[%emt 00:02:28]} Rxa3 {[%clk 00:34:01]} {[%emt 00:00:06]} 27. b3
{[%clk 00:36:37]} {[%emt 00:00:04]} Ra4 {[%clk 00:29:11]} {[%emt 00:05:20]} 28.
Bb2 {[%clk 00:36:12]} {[%emt 00:00:55]} Rd4 {[%clk 00:29:31]} {[%emt 00:00:11]}
29. Rxd4 {[%clk 00:35:38]} {[%emt 00:01:04]} cxd4 {[%clk 00:28:45]} {[%emt
00:01:15]} 30. Qd3 {[%clk 00:34:07]} {[%emt 00:02:02]} d5 {[%clk 00:09:17]}
{[%emt 00:19:57]} 31. exd5 {[%clk 00:33:30]} {[%emt 00:01:07]} Qxd5 {[%clk
00:09:38]} {[%emt 00:00:10]} 32. Nf1 {[%clk 00:32:23]} {[%emt 00:01:37]} Qa5
{[%clk 00:06:51]} {[%emt 00:03:16]} 33. Ng3 {[%clk 00:21:30]} {[%emt 00:11:25]}
Bb4 {[%clk 00:05:24]} {[%emt 00:01:56]} 34. Nxh5 {[%clk 00:21:10]} {[%emt
00:00:50]} Be6 {[%clk 00:04:27]} {[%emt 00:01:26]} 35. g6 {[%clk 00:17:14]}
{[%emt 00:04:27]} hxg6 {[%clk 00:03:53]} {[%emt 00:01:04]} 36. Rxg6+ {[%clk
00:17:25]} {[%emt 00:00:20]} Kf8 {[%clk 00:04:16]} {[%emt 00:00:06]} 37. Rxe6
{[%clk 00:16:57]} {[%emt 00:00:59]} fxe6 {[%clk 00:01:51]} {[%emt 00:02:55]} 38.
Qh7 {[%clk 00:15:17]} {[%emt 00:02:10]} Be7 {[%clk 00:02:07]} {[%emt 00:00:13]}
39. Qh8+ {[%clk 00:13:31]} {[%emt 00:02:17]} Kf7 {[%clk 00:02:31]} {[%emt
00:00:06]} 40. Qxb8 {[%clk 00:13:52]} {[%emt 00:00:09]} Qe1+ {[%clk 00:02:54]}
{[%emt 00:00:06]} 41. Bc1 {[%clk 00:13:10]} {[%emt 00:01:13]} d3 {[%clk
00:19:35]} {[%emt 00:13:48]} 42. cxd3 {[%clk 00:40:20]} {[%emt 00:03:20]} Qe2
{[%clk 00:19:59]} {[%emt 00:00:06]} 43. Qb5 {[%clk 00:36:59]} {[%emt 00:03:51]}
Qxf3 {[%clk 00:20:06]} {[%emt 00:00:22]} 44. Qxe5 {[%clk 00:37:00]} {[%emt
00:00:30]} Qxd3+ {[%clk 00:20:18]} {[%emt 00:00:19]} 45. Kb2 {[%clk 00:37:24]}
{[%emt 00:00:06]} Qf3 {[%clk 00:15:25]} {[%emt 00:05:21]} 46. Qg7+ {[%clk
00:34:33]} {[%emt 00:03:22]} Ke8 {[%clk 00:15:41]} {[%emt 00:00:14]} 47. Qg6+
{[%clk 00:34:48]} {[%emt 00:00:15]} Kd7 {[%clk 00:15:37]} {[%emt 00:00:35]} 48.
Nf4 {[%clk 00:35:00]} {[%emt 00:00:18]} Qf2+ {[%clk 00:11:59]} {[%emt
00:04:08]} 49. Kb1 {[%clk 00:35:25]} {[%emt 00:00:05]} 1-0

[ePGN "0.1;DGT LiveChess/2.2.5"]

[Event "Tournoi de MI Clichy 92 2022"]
[Site "Clichy, France"]
[Date "2022.02.27"]
[Round "9.2"]
[White "Degardin, Sylvain"]
[Black "Onkoud, Abdelaziz"]
[Result "1/2-1/2"]
[TimeControl "1H40 40 moves plus 30 minutes + 30 seconds from move one"]
[WhiteElo "2288"]
[BlackElo "2317"]

1. e4 {[%clk 01:30:48]} {[%emt 00:00:10]} d6 {[%clk 01:30:46]} {[%emt
00:00:15]} 2. d4 {[%clk 01:31:07]} {[%emt 00:00:10]} g6 {[%clk 01:30:57]}
{[%emt 00:00:19]} 3. Nc3 {[%clk 01:31:17]} {[%emt 00:00:21]} Bg7 {[%clk
01:31:20]} {[%emt 00:00:06]} 4. Be3 {[%clk 01:30:58]} {[%emt 00:00:49]} a6
{[%clk 01:31:03]} {[%emt 00:00:49]} 5. Qd2 {[%clk 01:29:51]} {[%emt 00:01:37]}
Nd7 {[%clk 01:30:11]} {[%emt 00:01:22]} 6. Nf3 {[%clk 01:27:45]} {[%emt
00:02:35]} e6 {[%clk 01:29:34]} {[%emt 00:01:07]} 7. Bd3 {[%clk 01:26:53]}
{[%emt 00:01:22]} h6 {[%clk 01:29:54]} {[%emt 00:00:09]} 8. O-O {[%clk
01:23:35]} {[%emt 00:03:49]} Ne7 {[%clk 01:30:05]} {[%emt 00:00:19]} 9. Ne2
{[%clk 01:22:25]} {[%emt 00:01:40]} b6 {[%clk 01:29:23]} {[%emt 00:01:12]} 10.
Ng3 {[%clk 01:20:07]} {[%emt 00:02:47]} c5 {[%clk 01:28:37]} {[%emt 00:01:17]}
11. c3 {[%clk 01:19:36]} {[%emt 00:01:01]} Qc7 {[%clk 01:28:16]} {[%emt
00:00:50]} 12. h3 {[%clk 01:00:43]} {[%emt 00:19:23]} Bb7 {[%clk 01:15:13]}
{[%emt 00:13:33]} 13. Nh2 {[%clk 00:59:46]} {[%emt 00:01:27]} Nf6 {[%clk
01:12:09]} {[%emt 00:03:34]} 14. Rfe1 {[%clk 00:53:24]} {[%emt 00:06:51]} Rd8
{[%clk 01:05:25]} {[%emt 00:07:14]} 15. Ng4 {[%clk 00:46:27]} {[%emt 00:07:27]}
Neg8 {[%clk 01:00:04]} {[%emt 00:05:51]} 16. Qe2 {[%clk 00:44:02]} {[%emt
00:02:56]} Qc8 {[%clk 01:00:01]} {[%emt 00:00:34]} 17. b4 {[%clk 00:40:52]}
{[%emt 00:03:40]} Nxg4 {[%clk 00:49:04]} {[%emt 00:11:26]} 18. hxg4 {[%clk
00:40:25]} {[%emt 00:00:57]} Nf6 {[%clk 00:48:41]} {[%emt 00:00:53]} 19. g5
{[%clk 00:35:04]} {[%emt 00:05:51]} Nd7 {[%clk 00:47:07]} {[%emt 00:02:04]} 20.
bxc5 {[%clk 00:32:15]} {[%emt 00:03:19]} bxc5 {[%clk 00:46:39]} {[%emt
00:00:58]} 21. Rab1 {[%clk 00:31:50]} {[%emt 00:00:55]} Qc7 {[%clk 00:43:04]}
{[%emt 00:04:05]} 22. Bxa6 {[%clk 00:27:53]} {[%emt 00:04:28]} Ba8 {[%clk
00:43:10]} {[%emt 00:00:23]} 23. Bd3 {[%clk 00:24:49]} {[%emt 00:03:34]} h5
{[%clk 00:42:54]} {[%emt 00:00:46]} 24. Nf1 {[%clk 00:23:08]} {[%emt 00:02:11]}
Ke7 {[%clk 00:41:39]} {[%emt 00:01:45]} 25. f4 {[%clk 00:20:43]} {[%emt
00:02:56]} Kf8 {[%clk 00:37:30]} {[%emt 00:04:39]} 26. Nh2 {[%clk 00:19:40]}
{[%emt 00:01:33]} d5 {[%clk 00:31:27]} {[%emt 00:06:34]} 27. e5 {[%clk
00:18:53]} {[%emt 00:01:17]} Kg8 {[%clk 00:31:10]} {[%emt 00:00:47]} 28. g4
{[%clk 00:17:43]} {[%emt 00:01:39]} hxg4 {[%clk 00:29:14]} {[%emt 00:02:27]} 29.
Nxg4 {[%clk 00:17:41]} {[%emt 00:00:32]} cxd4 {[%clk 00:28:11]} {[%emt
00:01:33]} 30. cxd4 {[%clk 00:16:54]} {[%emt 00:01:17]} Nb6 {[%clk 00:28:36]}
{[%emt 00:00:05]} 31. Kg2 {[%clk 00:16:17]} {[%emt 00:01:06]} Nc4 {[%clk
00:28:24]} {[%emt 00:00:42]} 32. Rh1 {[%clk 00:14:28]} {[%emt 00:02:19]} Rxh1
{[%clk 00:28:47]} {[%emt 00:00:08]} 33. Rxh1 {[%clk 00:14:23]} {[%emt
00:00:34]} Rb8 {[%clk 00:28:36]} {[%emt 00:00:40]} 34. Bc1 {[%clk 00:13:53]}
{[%emt 00:01:01]} Bc6 {[%clk 00:24:41]} {[%emt 00:04:26]} 35. Kg3 {[%clk
00:13:14]} {[%emt 00:01:08]} Qa7 {[%clk 00:24:23]} {[%emt 00:00:48]} 36. Qf2
{[%clk 00:09:13]} {[%emt 00:04:31]} Rb4 {[%clk 00:23:31]} {[%emt 00:01:22]} 37.
Nf6+ {[%clk 00:06:51]} {[%emt 00:02:52]} Kf8 {[%clk 00:22:36]} {[%emt
00:01:26]} 38. Rh7 {[%clk 00:06:13]} {[%emt 00:01:08]} Ra4 {[%clk 00:21:51]}
{[%emt 00:01:16]} 39. Bb1 {[%clk 00:01:29]} {[%emt 00:05:12]} Qa5 {[%clk
00:20:02]} {[%emt 00:02:20]} 40. Kg4 {[%clk 00:00:39]} {[%emt 00:01:19]} Qc3
{[%clk 00:18:31]} {[%emt 00:02:01]} 41. Qg1 {[%clk 00:20:23]} {[%emt 00:10:45]}
Nd2 {[%clk 00:34:20]} {[%emt 00:14:42]} 42. Rh3 {[%clk 00:18:04]} {[%emt
00:02:48]} Qa5 {[%clk 00:29:14]} {[%emt 00:05:38]} 43. Qd1 {[%clk 00:07:59]}
{[%emt 00:10:35]} Nc4 {[%clk 00:25:39]} {[%emt 00:04:05]} 44. Rb3 {[%clk
00:05:51]} {[%emt 00:02:38]} Qa7 {[%clk 00:25:56]} {[%emt 00:00:13]} 45. Qd3
{[%clk 00:02:44]} {[%emt 00:03:36]} Nxe5+ {[%clk 00:24:04]} {[%emt 00:02:21]}
46. dxe5 {[%clk 00:02:28]} {[%emt 00:00:47]} Qg1+ {[%clk 00:24:20]} {[%emt
00:00:13]} 47. Qg3 {[%clk 00:02:10]} {[%emt 00:00:47]} Qxc1 {[%clk 00:24:41]}
{[%emt 00:00:10]} 48. Qe3 {[%clk 00:00:34]} {[%emt 00:02:05]} Qd1+ {[%clk
00:23:07]} {[%emt 00:02:05]} 49. Qf3 {[%clk 00:00:42]} {[%emt 00:00:22]} Qg1+
{[%clk 00:16:57]} {[%emt 00:06:40]} 50. Qg3 {[%clk 00:01:10]} {[%emt 00:00:02]}
Qd1+ {[%clk 00:14:14]} {[%emt 00:03:12]} 51. Qf3 {[%clk 00:01:39]} {[%emt
00:00:02]} 1/2-1/2

[Event "Tournoi de MI Clichy 92 2022"]
[Site "Clichy, France"]
[Date "2022.02.27"]
[Round "9.4"]
[White "Decuigniere, Tom"]
[Black "Sorbe, Stephane"]
[Result "1-0"]
[TimeControl "1H40 40 moves plus 30 minutes + 30 seconds from move one"]
[WhiteElo "2292"]
[BlackElo "2326"]

1. d4 {[%clk 01:30:57]} {[%emt 00:00:03]} d5 {[%clk 01:30:43]} {[%emt
00:00:16]} 2. c4 {[%clk 01:31:21]} {[%emt 00:00:06]} c6 {[%clk 01:31:06]}
{[%emt 00:00:07]} 3. Nc3 {[%clk 01:31:40]} {[%emt 00:00:12]} Nf6 {[%clk
01:27:05]} {[%emt 00:04:30]} 4. e3 {[%clk 01:31:49]} {[%emt 00:00:21]} g6
{[%clk 01:26:09]} {[%emt 00:01:26]} 5. h3 {[%clk 01:26:49]} {[%emt 00:05:31]}
Bg7 {[%clk 01:24:17]} {[%emt 00:02:22]} 6. Nf3 {[%clk 01:27:09]} {[%emt
00:00:11]} O-O {[%clk 01:23:37]} {[%emt 00:01:09]} 7. Bd3 {[%clk 01:24:02]}
{[%emt 00:03:37]} b6 {[%clk 01:19:45]} {[%emt 00:04:21]} 8. O-O {[%clk
01:21:54]} {[%emt 00:02:37]} Bb7 {[%clk 01:16:12]} {[%emt 00:04:04]} 9. Qe2
{[%clk 01:08:27]} {[%emt 00:13:57]} Nbd7 {[%clk 01:15:25]} {[%emt 00:01:16]} 10.
cxd5 {[%clk 01:06:07]} {[%emt 00:02:51]} cxd5 {[%clk 01:14:55]} {[%emt
00:00:59]} 11. a4 {[%clk 01:05:30]} {[%emt 00:01:08]} Ne4 {[%clk 01:06:26]}
{[%emt 00:08:58]} 12. Ba6 {[%clk 00:49:19]} {[%emt 00:16:42]} Qc8 {[%clk
00:59:31]} {[%emt 00:07:25]} 13. Bxb7 {[%clk 00:49:44]} {[%emt 00:00:05]} Qxb7
{[%clk 00:59:56]} {[%emt 00:00:05]} 14. Qb5 {[%clk 00:49:07]} {[%emt 00:01:07]}
e6 {[%clk 00:48:41]} {[%emt 00:11:45]} 15. Nd2 {[%clk 00:40:39]} {[%emt
00:08:58]} f5 {[%clk 00:44:54]} {[%emt 00:04:17]} 16. Ndxe4 {[%clk 00:32:49]}
{[%emt 00:08:20]} fxe4 {[%clk 00:43:37]} {[%emt 00:01:46]} 17. Bd2 {[%clk
00:33:14]} {[%emt 00:00:06]} a6 {[%clk 00:37:57]} {[%emt 00:06:10]} 18. Qb3
{[%clk 00:32:37]} {[%emt 00:01:07]} Rf5 {[%clk 00:34:21]} {[%emt 00:04:06]} 19.
Ne2 {[%clk 00:29:01]} {[%emt 00:04:06]} g5 {[%clk 00:24:45]} {[%emt 00:10:05]}
20. Rac1 {[%clk 00:27:25]} {[%emt 00:02:07]} Raf8 {[%clk 00:17:45]} {[%emt
00:07:29]} 21. Bb4 {[%clk 00:26:38]} {[%emt 00:01:18]} R8f7 {[%clk 00:17:09]}
{[%emt 00:01:06]} 22. Ng3 {[%clk 00:25:33]} {[%emt 00:01:34]} R5f6 {[%clk
00:17:32]} {[%emt 00:00:07]} 23. Nh5 {[%clk 00:23:48]} {[%emt 00:02:15]} Rh6
{[%clk 00:17:31]} {[%emt 00:00:31]} 24. Nxg7 {[%clk 00:23:40]} {[%emt
00:00:39]} Kxg7 {[%clk 00:12:36]} {[%emt 00:05:25]} 25. Bd6 {[%clk 00:24:05]}
{[%emt 00:00:05]} Nf6 {[%clk 00:10:11]} {[%emt 00:02:56]} 26. Rc3 {[%clk
00:22:45]} {[%emt 00:01:50]} g4 {[%clk 00:10:08]} {[%emt 00:00:33]} 27. Rfc1
{[%clk 00:22:20]} {[%emt 00:00:55]} Ne8 {[%clk 00:06:45]} {[%emt 00:03:52]} 28.
Be5+ {[%clk 00:22:12]} {[%emt 00:00:38]} Kg6 {[%clk 00:07:12]} {[%emt
00:00:03]} 29. Rc6 {[%clk 00:21:32]} {[%emt 00:01:10]} Qe7 {[%clk 00:07:15]}
{[%emt 00:00:26]} 30. Qxd5 {[%clk 00:21:42]} {[%emt 00:00:19]} Kh5 {[%clk
00:00:35]} {[%emt 00:07:11]} 31. hxg4+ {[%clk 00:21:39]} {[%emt 00:00:33]} Kh4
{[%clk 00:01:00]} {[%emt 00:00:04]} 32. Qxe4 {[%clk 00:20:18]} {[%emt
00:01:52]} Nf6 {[%clk 00:01:23]} {[%emt 00:00:07]} 33. Bg3+ {[%clk 00:19:53]}
{[%emt 00:00:55]} Kg5 {[%clk 00:01:48]} {[%emt 00:00:05]} 34. Qe5+ {[%clk
00:19:55]} {[%emt 00:00:28]} Kg6 {[%clk 00:02:11]} {[%emt 00:00:07]} 35. g5
{[%clk 00:19:15]} {[%emt 00:01:11]} 1-0

[Event "Tournoi de MI Clichy 92 2022"]
[Site "Clichy, France"]
[Date "2022.02.27"]
[Round "9.5"]
[White "Droin, Augustin"]
[Black "Benmesbah, Natacha"]
[Result "1-0"]
[TimeControl "1H40 40 moves plus 30 minutes + 30 seconds from move one"]
[WhiteElo "2365"]
[BlackElo "2221"]

1. e4 {[%clk 01:30:34]} {[%emt 00:00:26]} c5 {[%clk 01:26:27]} {[%emt
00:04:33]} 2. Nf3 {[%clk 01:30:59]} {[%emt 00:00:05]} Nc6 {[%clk 01:26:07]}
{[%emt 00:00:50]} 3. Bb5 {[%clk 01:31:24]} {[%emt 00:00:04]} g6 {[%clk
01:26:32]} {[%emt 00:00:06]} 4. Bxc6 {[%clk 01:31:43]} {[%emt 00:00:11]} dxc6
{[%clk 01:26:52]} {[%emt 00:00:10]} 5. d3 {[%clk 01:32:09]} {[%emt 00:00:04]}
Bg7 {[%clk 01:27:17]} {[%emt 00:00:04]} 6. h3 {[%clk 01:32:36]} {[%emt
00:00:03]} Nf6 {[%clk 01:25:01]} {[%emt 00:02:47]} 7. Nc3 {[%clk 01:32:54]}
{[%emt 00:00:12]} O-O {[%clk 01:25:19]} {[%emt 00:00:12]} 8. Be3 {[%clk
01:30:11]} {[%emt 00:03:12]} b6 {[%clk 01:25:30]} {[%emt 00:00:20]} 9. Qd2
{[%clk 01:30:36]} {[%emt 00:00:05]} e5 {[%clk 01:24:49]} {[%emt 00:01:11]} 10.
Bh6 {[%clk 01:27:37]} {[%emt 00:03:28]} Qd6 {[%clk 01:21:32]} {[%emt 00:03:47]}
11. Bxg7 {[%clk 01:26:37]} {[%emt 00:01:30]} Kxg7 {[%clk 01:21:59]} {[%emt
00:00:04]} 12. a4 {[%clk 01:26:39]} {[%emt 00:00:28]} Ne8 {[%clk 01:18:39]}
{[%emt 00:03:50]} 13. a5 {[%clk 01:26:05]} {[%emt 00:01:04]} b5 {[%clk
01:18:53]} {[%emt 00:00:16]} 14. O-O {[%clk 01:20:16]} {[%emt 00:06:18]} Nc7
{[%clk 01:17:06]} {[%emt 00:02:17]} 15. Ne2 {[%clk 01:15:34]} {[%emt 00:05:12]}
Ne6 {[%clk 01:15:56]} {[%emt 00:01:40]} 16. c3 {[%clk 01:15:06]} {[%emt
00:00:59]} Rd8 {[%clk 01:14:25]} {[%emt 00:02:00]} 17. Rfd1 {[%clk 01:15:19]}
{[%emt 00:00:16]} Ba6 {[%clk 01:11:12]} {[%emt 00:03:43]} 18. Ng5 {[%clk
01:05:24]} {[%emt 00:10:25]} b4 {[%clk 01:04:07]} {[%emt 00:07:35]} 19. Nxe6+
{[%clk 01:04:22]} {[%emt 00:01:31]} Qxe6 {[%clk 01:03:52]} {[%emt 00:00:45]} 20.
Qe3 {[%clk 01:04:28]} {[%emt 00:00:23]} Rd7 {[%clk 01:01:52]} {[%emt 00:02:31]}
21. Nc1 {[%clk 00:56:27]} {[%emt 00:08:31]} c4 {[%clk 00:53:55]} {[%emt
00:08:26]} 22. d4 {[%clk 00:49:39]} {[%emt 00:07:18]} exd4 {[%clk 00:47:28]}
{[%emt 00:06:57]} 23. Rxd4 {[%clk 00:49:58]} {[%emt 00:00:11]} Rad8 {[%clk
00:47:20]} {[%emt 00:00:38]} 24. Ne2 {[%clk 00:49:30]} {[%emt 00:00:58]} c5
{[%clk 00:47:00]} {[%emt 00:00:50]} 25. Rxd7 {[%clk 00:49:03]} {[%emt
00:00:56]} Rxd7 {[%clk 00:43:33]} {[%emt 00:03:58]} 26. e5 {[%clk 00:38:17]}
{[%emt 00:11:16]} Rd3 {[%clk 00:39:29]} {[%emt 00:04:33]} 27. Nf4 {[%clk
00:38:11]} {[%emt 00:00:36]} Qc6 {[%clk 00:36:50]} {[%emt 00:03:10]} 28. Nxd3
{[%clk 00:38:17]} {[%emt 00:00:23]} cxd3 {[%clk 00:37:16]} {[%emt 00:00:03]} 29.
cxb4 {[%clk 00:36:16]} {[%emt 00:02:32]} cxb4 {[%clk 00:37:41]} {[%emt
00:00:05]} 30. Qd4 {[%clk 00:33:14]} {[%emt 00:03:32]} Kg8 {[%clk 00:36:15]}
{[%emt 00:01:56]} 31. Qd6 {[%clk 00:31:32]} {[%emt 00:02:12]} Qc4 {[%clk
00:35:38]} {[%emt 00:01:07]} 32. Re1 {[%clk 00:30:51]} {[%emt 00:01:11]} Bc8
{[%clk 00:34:55]} {[%emt 00:01:14]} 33. b3 {[%clk 00:29:33]} {[%emt 00:01:48]}
Qc3 {[%clk 00:34:28]} {[%emt 00:00:56]} 34. Re4 {[%clk 00:29:38]} {[%emt
00:00:25]} d2 {[%clk 00:28:31]} {[%emt 00:06:28]} 35. Rd4 {[%clk 00:29:50]}
{[%emt 00:00:18]} 1-0